fUSD/lending_fUSD_20260128
["ID","MTS","AMOUNT","RATE_DAILY","PERIOD"]
[403836516,1769581843603,-698.0,0.00015652,2]
[403836517,1769581843614,-1076.15,0.00015652,2]
[403836518,1769581843623,-12243.04337453,0.00015659,2]
[403836519,1769581843632,-187.2,0.00015694,2]
[403836520,1769581843642,-500.0,0.00015706,2]
[403836521,1769581843653,-174.61919141,0.00015706,2]
[403836522,1769581843663,-209.40437684,0.00015706,2]
[403836523,1769581843673,-3000.0,0.00015706,2]
[403836524,1769581843682,-3000.0,0.00015706,2]
[403836525,1769581843692,-3000.0,0.00015706,2]
[403836526,1769581843701,-500.0,0.00015706,2]
[403836527,1769581843711,-2000.0,0.00015706,2]
[403836528,1769581843720,-500.0,0.00015706,2]
[403836529,1769581843730,-500.0,0.00015706,2]
[403836530,1769581843740,-500.0,0.00015706,2]
[403836531,1769581843750,-2000.0,0.00015706,2]
[403836532,1769581843759,-500.0,0.00015706,2]
[403836533,1769581843769,-161.75816476,0.00015706,2]
[403836534,1769581843778,-500.0,0.00015706,2]
[403836535,1769581843788,-381.30596867,0.00015706,2]
[403836536,1769581843797,-500.0,0.00015706,2]
[403836537,1769581843807,-500.0,0.00015706,2]
[403836538,1769581843816,-500.0,0.00015706,2]
[403836539,1769581843825,-151.0,0.00015706,2]
[403836540,1769581843835,-522.5850038,0.00015706,2]
[403836541,1769581843844,-322.6107,0.00015706,2]
[403836542,1769581843854,-207.69124521,0.00015706,2]
[403836543,1769581843863,-2000.0,0.00015706,2]
[403836544,1769581843873,-2000.0,0.00015706,2]
[403836545,1769581843882,-155.43682529,0.00015706,2]
[403836546,1769581843891,-721.12765535,0.00015706,2]
[403836547,1769581843901,-250.0,0.00015706,2]
[403836548,1769581843911,-854.2589148,0.00015706,2]
[403836549,1769581843921,-578.20924308,0.00015706,2]
[403836550,1769581843931,-500.0,0.00015707,2]
[403836551,1769581843942,-698.0,0.00015707,2]
[403836552,1769581843953,-500.0,0.00015761,2]
[403836553,1769581843964,-217.15233878,0.00015761,2]
[403836554,1769581843973,-500.0,0.00015762,2]
[403836555,1769581843983,-698.0,0.00015762,2]
[403836556,1769581843994,-205.99,0.00015799,2]
[403836557,1769581844003,-15913.95118156,0.0001581,2]
[403836558,1769581844013,-603.52186183,0.00015815,2]
[403836559,1769581844023,-150.80019516,0.00015816,2]
[403836560,1769581844033,-698.0,0.00015816,2]
[403836561,1769581844043,-225.18697532,0.00015816,2]
[403836562,1769581844052,-60757.63212444,0.00015818,2]
[403836563,1769581844062,-698.0,0.00015871,2]
[403836564,1769581844072,-233.51889341,0.00015871,2]
[403836565,1769581844082,-206.24263098,0.00015917,2]
[403836566,1769581844091,-500.0,0.00015917,2]
[403836567,1769581844101,-200.0,0.00015917,2]
[403836568,1769581844111,-711.04,0.00015918,2]
[403836569,1769581844123,-698.0,0.00015926,2]
[403836570,1769581844134,-1076.15,0.00015926,2]
[403836571,1769581844145,-242.15909246,0.00015926,2]
[403836572,1769581844155,-12243.04337453,0.00015939,2]
[403836573,1769581844165,-698.0,0.00015981,2]
[403836574,1769581844175,-251.11897888,0.00015981,2]
[403836575,1769581844184,-1000.0,0.0001599,2]
[403836576,1769581844195,-76226.08254956,0.00016,4]
[403836577,1769581844206,-698.0,0.00016036,2]
[403836578,1769581844216,-260.4103811,0.00016036,2]
[403836579,1769581844226,-500.0,0.0001606,2]
[403836580,1769581844235,-500.0,0.0001606,2]
[403836581,1769581844244,-500.0,0.0001606,2]
[403836582,1769581844254,-500.0,0.0001606,2]
[403836583,1769581844264,-500.0,0.0001606,2]
[403836584,1769581844274,-560.97832733,0.0001606,2]
[403836585,1769581844283,-500.0,0.0001606,2]
[403836586,1769581844293,-528.82732304,0.0001606,2]
[403836587,1769581844303,-2000.0,0.00016078,2]
[403836588,1769581844312,-698.0,0.0001609,2]
[403836589,1769581844321,-270.0455652,0.00016091,2]
[403836590,1769581844331,-15913.95118156,0.00016109,2]
[403836591,1769581844341,-431.53,0.00016143,2]
[403836592,1769581844350,-698.0,0.00016145,2]
[403836593,1769581844360,-280.03725112,0.00016146,2]
[403836594,1769581844369,-166.66,0.00016182,2]
[403836595,1769581844379,-698.0,0.000162,2]
[403836596,1769581844388,-1076.15,0.000162,2]
[403836597,1769581844398,-5000.00884057,0.000162,5]
[403836598,1769581844407,-290.39862941,0.00016201,2]
[403836599,1769581844416,-12243.04337453,0.00016219,2]
[403836600,1769581844426,-510.0,0.0001622,2]
[403836601,1769581844435,-986.689,0.00016221,2]
[403836602,1769581844445,-500.0,0.00016244,2]
[403836603,1769581844454,-524.93822417,0.00016244,2]
[403836604,1769581844463,-6193.5830647,0.00016245,2]
[403836605,1769581844473,-181.08010149,0.00016254,2]
[403836606,1769581844482,-885.86649465,0.00016254,2]
[403836607,1769581844492,-698.0,0.00016255,2]
[403836608,1769581844502,-301.1433787,0.00016256,2]
[403836609,1769581844513,-2000.0,0.00016281,2]
[403836610,1769581844522,-2000.0,0.00016281,2]
[403836611,1769581844532,-2000.0,0.00016281,2]
[403836612,1769581844542,-2000.0,0.00016281,2]
[403836613,1769581844551,-2000.0,0.00016281,2]
[403836614,1769581844560,-414.896,0.00016281,2]
[403836615,1769581844571,-1000.0,0.00016281,2]
[403836616,1769581844581,-1000.0,0.00016281,2]
[403836617,1769581844591,-1000.0,0.00016281,2]
[403836618,1769581844601,-1000.0,0.00016281,2]
[403836619,1769581844610,-2000.0,0.00016281,2]
[403836620,1769581844619,-2280.75,0.00016303,2]
[403836621,1769581844628,-698.0,0.00016309,2]
[403836622,1769581844638,-2038.85753689,0.00016354,2]
[403836623,1769581844649,-707.35924827,0.00016364,2]
[403836624,1769581844659,-502.97428002,0.00016373,2]
[403836625,1769581844668,-501.53607282,0.00016373,2]
[403836626,1769581844677,-500.0,0.00016373,2]
[403836627,1769581844690,-501.27356282,0.00016373,2]
[403836628,1769581844700,-156.16956457,0.00016373,2]
[403836629,1769581844711,-539.78935463,0.00016373,2]
[403836630,1769581844722,-160.1775309,0.00016373,2]
[403836631,1769581844732,-173.57092729,0.00016373,2]
[403836632,1769581844741,-502.66827993,0.00016373,2]
[403836633,1769581844750,-500.0,0.00016373,2]
[403836634,1769581844760,-500.93042604,0.00016373,2]
[403836635,1769581844770,-193.55647902,0.00016373,2]
[403836636,1769581844779,-160.17647728,0.00016373,2]
[403836637,1769581844788,-15913.95118156,0.00016407,2]
[403836638,1769581844798,-581.45652,0.00016422,2]
[403836639,1769581844807,-778.86477401,0.00016422,2]
[403836640,1769581844816,-261.56434182,0.00016425,2]
[403836641,1769581844826,-500.0,0.00016425,2]
[403836642,1769581844835,-500.0,0.00016425,2]
[403836643,1769581844845,-500.0,0.00016438,2]
[403836644,1769581844855,-500.0,0.00016438,2]
[403836645,1769581844866,-500.0,0.00016438,2]
[403836646,1769581844876,-500.0,0.00016438,2]
[403836647,1769581844885,-500.0,0.00016438,2]
[403836648,1769581844896,-500.0,0.00016438,2]
[403836649,1769581844905,-500.0,0.00016438,2]
[403836650,1769581844915,-500.0,0.00016438,2]
[403836651,1769581844925,-500.0,0.00016438,2]
[403836652,1769581844935,-500.0,0.00016438,2]
[403836653,1769581844944,-500.0,0.00016438,2]
[403836654,1769581844953,-500.0,0.00016438,2]
[403836655,1769581844963,-500.0,0.00016438,2]
[403836656,1769581844972,-500.0,0.00016438,2]
[403836657,1769581844982,-500.0,0.00016438,2]
[403836658,1769581844992,-500.0,0.00016438,2]
[403836659,1769581845001,-500.0,0.00016438,2]
[403836660,1769581845010,-500.0,0.00016438,2]
[403836661,1769581845019,-162.68007086,0.00016438,2]
[403836662,1769581845029,-500.0,0.00016438,2]
[403836663,1769581845038,-500.0,0.00016438,2]
[403836664,1769581845048,-500.0,0.00016438,2]
[403836665,1769581845058,-500.0,0.00016438,2]
[403836666,1769581845068,-500.0,0.00016438,2]
[403836667,1769581845077,-500.0,0.00016438,2]
[403836668,1769581845086,-500.0,0.00016438,2]
[403836669,1769581845095,-500.0,0.00016438,2]
[403836670,1769581845104,-500.0,0.00016438,2]
[403836671,1769581845114,-500.0,0.00016438,2]
[403836672,1769581845126,-500.0,0.00016438,2]
[403836673,1769581845135,-500.0,0.00016438,2]
[403836674,1769581845144,-500.0,0.00016438,2]
[403836675,1769581845155,-500.0,0.00016438,2]
[403836676,1769581845166,-500.0,0.00016438,2]
[403836677,1769581845176,-500.0,0.00016438,2]
[403836678,1769581845188,-500.0,0.00016438,2]
[403836679,1769581845199,-500.0,0.00016438,2]
[403836680,1769581845207,-500.0,0.00016438,2]
[403836681,1769581845218,-500.0,0.00016438,2]
[403836682,1769581845227,-500.0,0.00016438,2]
[403836683,1769581845237,-500.0,0.00016438,2]
[403836684,1769581845247,-500.0,0.00016438,2]
[403836685,1769581845256,-600.0,0.00016438,2]
[403836686,1769581845266,-2395.93,0.00016438,2]
[403836687,1769581845277,-2395.93,0.00016438,2]
[403836688,1769581845286,-2395.93,0.00016438,2]
[403836689,1769581845295,-2395.93,0.00016438,2]
[403836690,1769581845304,-2395.93,0.00016438,2]
[403836691,1769581845314,-2395.93,0.00016438,2]
[403836692,1769581845324,-2395.93,0.00016438,2]
[403836693,1769581845334,-2395.93,0.00016438,2]
[403836694,1769581845344,-2395.93,0.00016438,2]
[403836695,1769581845354,-2395.93,0.00016438,2]
[403836696,1769581845363,-2395.93,0.00016438,2]
[403836697,1769581845372,-2395.93,0.00016438,2]
[403836698,1769581845381,-2395.93,0.00016438,2]
[403836699,1769581845390,-2395.93,0.00016438,2]
[403836700,1769581845400,-2395.93,0.00016438,2]
[403836701,1769581845409,-2395.93,0.00016438,2]
[403836702,1769581845418,-2395.93,0.00016438,2]
[403836703,1769581845427,-2395.93,0.00016438,2]
[403836704,1769581845437,-2395.93,0.00016438,2]
[403836705,1769581845446,-2395.93,0.00016438,2]
[403836706,1769581845455,-2395.93,0.00016438,2]
[403836707,1769581845464,-2395.93,0.00016438,2]
[403836708,1769581845473,-2395.93,0.00016438,2]
[403836709,1769581845482,-2396.0314044,0.00016438,2]
[403836710,1769581845491,-544.60815205,0.00016438,2]
[403836711,1769581845500,-500.0,0.00016438,2]
[403836712,1769581845509,-578.39080156,0.00016438,2]
[403836713,1769581845519,-500.0,0.00016465,2]
[403836714,1769581845527,-1076.15,0.00016474,2]
[403836715,1769581845536,-12243.04337453,0.00016499,2]
[403836716,1769581845545,-536.92554439,0.00016512,2]
[403836717,1769581845555,-711.04,0.00016515,2]
[403836718,1769581845563,-2500.0,0.00016536,2]
[403836719,1769581845572,-600.0,0.00016536,2]
[403836720,1769581845582,-5075.37527096,0.00016536,2]
[403836721,1769581845591,-250.0,0.00016536,2]
[403836722,1769581845600,-300.0,0.00016536,2]
[403836723,1769581845609,-346.37974465,0.00016536,2]
[403836724,1769581845618,-195.0,0.00016536,2]
[403836725,1769581845627,-8620.0,0.00016566,2]
[403836726,1769581845636,-1680.0,0.0001661,2]
[403836727,1769581845645,-593.74742251,0.00016687,2]
[403836728,1769581845654,-15913.95118156,0.00016706,2]
[403836729,1769581845663,-10076.80540011,0.00016711,2]
[403836730,1769581845673,-407.56057681,0.0001672,2]
[403836731,1769581845682,-1076.15,0.00016748,2]
[403836732,1769581845691,-12243.04337453,0.0001678,2]
[403836733,1769581845700,-166.66,0.00016799,2]
[403836734,1769581845709,-187.78006525,0.00016802,2]
[403836735,1769581845718,-918.64355495,0.00016802,2]
[403836736,1769581845728,-500.0,0.00016811,2]
[403836737,1769581845737,-500.0,0.00016811,2]
[403836738,1769581845746,-500.0,0.00016811,2]
[403836739,1769581845755,-500.0,0.00016811,2]
[403836740,1769581845765,-9058.37508753,0.000169,2]
[403836741,1769581845774,-198.64506344,0.00016921,2]
[403836742,1769581845784,-501.11024626,0.00016921,2]
[403836743,1769581845793,-500.0,0.00016999,2]
[403836744,1769581845802,-500.0,0.00016999,2]
[403836745,1769581845811,-500.0,0.00016999,2]
[403836746,1769581845820,-223430.49409216,0.00017,2]
[403836747,1769581845830,-250.0,0.00017,2]
[403836748,1769581845839,-15913.95118156,0.00017004,2]
[403836749,1769581845848,-503.77912883,0.00017013,2]
[403836750,1769581845857,-1076.15,0.00017022,2]
[403836751,1769581845866,-519.88726717,0.00017057,2]
[403836752,1769581845876,-500.0,0.00017057,2]
[403836753,1769581845885,-12243.04337453,0.0001706,2]
[403836754,1769581845894,-151.0,0.0001706,2]
[403836755,1769581845903,-151.0,0.0001706,2]
[403836756,1769581845912,-334.5472959,0.00017075,2]
[403836757,1769581845921,-500.0,0.00017096,2]
[403836758,1769581845930,-711.04,0.00017112,2]
[403836759,1769581845940,-1076.18857683,0.00017296,2]
[403836760,1769581845949,-15913.95118156,0.00017303,2]
[403836761,1769581845958,-796.731528,0.00017306,2]
[403836762,1769581845967,-796.731528,0.00017306,2]
[403836763,1769581845976,-796.731528,0.00017306,2]
[403836764,1769581845985,-796.731528,0.00017306,2]
[403836765,1769581845995,-519.705503,0.00017306,2]
[403836766,1769581846004,-519.705503,0.00017306,2]
[403836767,1769581846013,-519.705503,0.00017306,2]
[403836768,1769581846022,-519.705503,0.00017306,2]
[403836769,1769581846031,-4934.0,0.00017306,2]
[403836770,1769581846040,-12243.04337453,0.0001734,2]
[403836771,1769581846050,-194.72792766,0.0001735,2]
[403836772,1769581846061,-952.63336648,0.0001735,2]
[403836773,1769581846071,-200.0,0.0001736,2]
[403836774,1769581846082,-4934.0,0.00017393,2]
[403836775,1769581846091,-866.0,0.00017413,2]
[403836776,1769581846101,-166.66,0.00017415,2]
[403836777,1769581846112,-187.2,0.00017417,2]
[403836778,1769581846123,-500.0,0.00017478,2]
[403836779,1769581846133,-3100.0,0.000175,6]
[403836780,1769581846142,-3189.0,0.00017508,2]
[403836781,1769581846151,-4934.0,0.00017512,2]
[403836782,1769581846160,-3189.0,0.00017523,2]
[403836783,1769581846172,-1274.033,0.000176,2]
[403836784,1769581846182,-184.736,0.000176,2]
[403836785,1769581846193,-1208.946,0.000176,2]
[403836786,1769581846203,-928.806,0.000176,2]
[403836787,1769581846215,-1338.52,0.000176,2]
[403836788,1769581846224,-3487.934,0.000176,2]
[403836789,1769581846233,-1414.751,0.000176,2]
[403836790,1769581846243,-4200.0,0.000176,6]
[403836791,1769581846253,-15913.95118156,0.00017601,2]
[403836792,1769581846263,-3189.0,0.00017618,2]
[403836793,1769581846273,-12243.04337453,0.0001762,2]
[403836794,1769581846283,-877.25345748,0.00017629,2]
[403836795,1769581846292,-1010.53040663,0.0001764,2]
[403836796,1769581846301,-5200.0,0.000177,6]
[403836798,1769581846310,-711.04,0.00017709,2]
[403836800,1769581846319,-1075.55881045,0.0001772,2]
[403836802,1769581846328,-1897.41323169,0.0001772,2]
[403836803,1769581846338,-2838.41671778,0.0001772,2]
[403836804,1769581846347,-205.99,0.00017722,2]
[403836805,1769581846356,-9999.99,0.00017728,2]
[403836806,1769581846365,-220.46,0.00017728,2]
[403836807,1769581846374,-6045.63,0.00017728,2]
[403836808,1769581846383,-9999.99,0.00017728,2]
[403836809,1769581846392,-299.99,0.00017728,4]
[403836810,1769581846401,-150.99,0.00017728,2]
[403836811,1769581846411,-158.70124471,0.00017754,2]
[403836812,1769581846420,-500.0,0.00017799,2]
[403836813,1769581846430,-1000.0,0.000178,6]
[403836814,1769581846440,-4934.0,0.00017807,2]
[403836815,1769581846449,-2000.0,0.0001782,2]
[403836816,1769581846458,-2000.0,0.0001782,2]
[403836817,1769581846467,-201.93286099,0.00017898,2]
[403836818,1769581846477,-987.88080104,0.00017898,2]
[403836819,1769581846486,-522.13176756,0.00017899,2]
[403836820,1769581846496,-10000.0,0.000179,2]
[403836821,1769581846504,-1000.0,0.000179,6]
[403836822,1769581846514,-12243.04337453,0.000179,2]
[403836823,1769581846523,-228.23051518,0.000179,3]
[403836824,1769581846532,-496.56720138,0.000179,2]
[403836825,1769581846542,-5423.7170479,0.000179,2]
[403836826,1769581846552,-500.0,0.00017973,2]
[403836827,1769581846562,-150.0,0.00017973,2]
[403836828,1769581846571,-222.7140054,0.00017982,2]
[403836829,1769581846579,-500.0,0.00017982,2]
[403836830,1769581846589,-11758.50605339,0.0001799,3]
[403836831,1769581846598,-218.94503066,0.0001799,2]
[403836832,1769581846607,-218.94503066,0.0001799,2]
[403836833,1769581846616,-192.79862973,0.00017998,2]
[403836834,1769581846625,-500.0,0.00017998,2]
[403836835,1769581846635,-500.0,0.00017998,2]
[403836836,1769581846644,-500.0,0.00017998,2]
[403836837,1769581846653,-500.0,0.00017998,2]
[403836838,1769581846662,-500.0,0.00017998,2]
[403836839,1769581846671,-500.0,0.00017998,2]
[403836840,1769581846680,-511.31408016,0.00017998,2]
[403836841,1769581846689,-150.0,0.00017999,2]
[403836842,1769581846699,-150.0,0.00017999,2]
[403836843,1769581846708,-183.10914216,0.00017999,2]
[403836844,1769581846717,-294779.5264347,0.00017999,2]
[403836845,1769581846726,-3893.49491,0.00017999,2]
[403836846,1769581846736,-298.742,0.00017999,2]
[403836847,1769581846745,-500.0,0.00017999,2]
[403836848,1769581846755,-508.82801883,0.00017999,2]
[403836849,1769581846764,-500.0,0.00017999,2]
[403836850,1769581846774,-510.97406699,0.00017999,2]
[403836851,1769581846783,-500.0,0.00017999,2]
[403836852,1769581846792,-500.0,0.00017999,2]
[403836853,1769581846802,-575.22582116,0.00017999,2]
[403836854,1769581846811,-300.0,0.00017999,2]
[403836855,1769581846820,-7487.7922667,0.00017999,2]
[403836856,1769581846829,-300.0,0.00017999,2]
[403836857,1769581846839,-515.28066526,0.00017999,2]
[403836858,1769581846848,-300.0,0.00017999,2]
[403836859,1769581846858,-13998.35686924,0.00017999,2]
[403836860,1769581846868,-300.0,0.00017999,2]
[403836861,1769581846877,-666.0,0.00017999,2]
[403836862,1769581846887,-300.0,0.00017999,2]
[403836863,1769581846896,-1352.6041893,0.00017999,2]
[403836864,1769581846906,-300.0,0.00017999,2]
[403836865,1769581846915,-428.89752222,0.00017999,2]
[403836866,1769581846924,-666.0,0.00017999,2]
[403836867,1769581846933,-249.487899,0.00017999,2]
[403836868,1769581846943,-249.487899,0.00017999,2]
[403836869,1769581846953,-249.487899,0.00017999,2]
[403836870,1769581846963,-249.487899,0.00017999,2]
[403836871,1769581846972,-151.0,0.00017999,2]
[403836872,1769581846981,-151.0,0.00017999,2]
[403836873,1769581846991,-796.731528,0.00017999,2]
[403836874,1769581847001,-796.731528,0.00017999,2]
[403836875,1769581847010,-796.731528,0.00017999,2]
[403836876,1769581847020,-796.731528,0.00017999,2]
[403836877,1769581847030,-519.705503,0.00017999,2]
[403836878,1769581847040,-519.705503,0.00017999,2]
[403836879,1769581847049,-519.705503,0.00017999,2]
[403836880,1769581847060,-519.705503,0.00017999,2]
[403836881,1769581847069,-151.0,0.00017999,2]
[403836882,1769581847078,-151.0,0.00017999,2]
[403836883,1769581847087,-1737265.23485707,0.00018,2]
[403836884,1769581847097,-623073.19063289,0.00018,2]
[403836885,1769581847107,-387.0,0.00018,2]
[403836886,1769581847117,-387.0,0.00018,2]
[403836887,1769581847131,-387.0,0.00018,2]
[403836888,1769581847141,-387.0,0.00018,2]
[403836889,1769581847151,-387.0,0.00018,2]
[403836890,1769581847162,-387.0,0.00018,2]
[403836891,1769581847171,-387.0,0.00018,2]
[403836892,1769581847180,-200.17585614,0.00018,2]
[403836893,1769581847190,-151.0,0.00018,2]
[403836894,1769581847202,-151.0,0.00018,2]
[403836895,1769581847211,-151.0,0.00018,2]
[403836896,1769581847222,-151.0,0.00018,2]
[403836897,1769581847233,-151.0,0.00018,2]
[403836898,1769581847242,-151.0,0.00018,2]
[403836899,1769581847251,-151.0,0.00018,2]
[403836900,1769581847261,-151.0,0.00018,2]
[403836901,1769581847270,-151.0,0.00018,2]
[403836902,1769581847279,-151.0,0.00018,2]
[403836903,1769581847288,-187.547238,0.00018,2]
[403836904,1769581847300,-288.587944,0.00018,2]
[403836905,1769581847310,-288.587944,0.00018,2]
[403836906,1769581847320,-288.587944,0.00018,2]
[403836907,1769581847330,-288.587944,0.00018,2]
[403836908,1769581847339,-288.587944,0.00018,2]
[403836909,1769581847349,-288.587944,0.00018,2]
[403836910,1769581847358,-288.587944,0.00018,2]
[403836911,1769581847368,-288.587944,0.00018,2]
[403836912,1769581847378,-151.0,0.00018,2]
[403836913,1769581847664,-151.0,0.00018,2]
[403836914,1769581847675,-151.0,0.00018,2]
[403836915,1769581847685,-151.0,0.00018,2]
[403836916,1769581847695,-151.0,0.00018,2]
[403836917,1769581847704,-151.0,0.00018,2]
[403836918,1769581847714,-212.421188,0.00018,2]
[403836919,1769581847727,-183660.95621676,0.00018,2]
[403836920,1769581848437,-27550.0,0.00018,2]
[403836921,1769581848449,-28854.25112451,0.00018,2]
[403836922,1769581892344,2059.172,0.0001481,2]
[403836923,1769581892389,162.901,0.0001481,2]
[403836924,1769582143131,700.0,0.000148,5]
[403836925,1769582145797,1400.0,0.000149,5]
[403836926,1769582175888,1266.30979616,0.00014997,2]
[403836927,1769582175913,764.24020384,0.00014997,2]
[403836932,1769582552595,-150.0,0.00015003,2]
[403836933,1769582552624,-150.0,0.00015003,2]
[403836934,1769582552655,-150.0,0.00015003,2]
[403836935,1769582552686,-500.0,0.00015003,2]
[403836936,1769582552716,-150.0,0.00015003,2]
[403836937,1769582552748,-500.0,0.00015003,2]
[403836938,1769582552781,-150.0,0.00015003,2]
[403836939,1769582552837,500.0,0.00015003,2]
[403836940,1769582553519,500.0,0.00015003,2]
[403836941,1769582561264,5021.32,0.00014288,2]
[403836942,1769582593384,478.69,0.00014263,2]
[403836943,1769582593416,521.31,0.00014263,2]
[403836944,1769582653157,500.0,0.00015003,2]
[403836945,1769582653481,150.0,0.00015003,2]
[403836946,1769582653570,500.0,0.00015003,2]
[403836947,1769582653619,150.0,0.00015003,2]
[403836948,1769582653816,150.0,0.00015003,2]
[403836949,1769582654692,500.0,0.00015003,2]
[403836950,1769582654754,150.0,0.00015003,2]
[403836951,1769582672728,181.1,0.00021,30]
[403836953,1769582793574,200.0,0.00014995,2]
[403836954,1769582793731,200.0,0.00014995,2]
[403836955,1769582793887,500.0,0.00014995,2]
[403836956,1769582793922,150.0,0.00014995,2]
[403836957,1769582824972,1000.0,0.000148,5]
[403836958,1769582825860,2000.0,0.000149,5]
[403836959,1769582890286,200.0,0.00014147,2]
[403836960,1769582898840,6650.01,0.00014978,2]
[403836961,1769582898868,10000.01,0.00014978,2]
[403836962,1769582898899,10000.01,0.00014978,2]
[403836963,1769582898927,10000.01,0.00014978,2]
[403836964,1769582898954,10000.01,0.00014978,2]
[403836965,1769582898981,10000.01,0.00014978,2]
[403836966,1769582899012,10000.01,0.00014978,2]
[403836967,1769582899040,10000.01,0.00014978,2]
[403836968,1769582907247,-536.0,0.00014977,2]
[403836969,1769582942233,607.738324,0.0001494,2]
[403836970,1769582945479,300.0,0.00014977,2]
[403836971,1769583002041,1200.0,0.00014977,2]
[403836972,1769583003852,274.0,0.00014978,2]
[403836973,1769583021213,255.4358691,0.00014968,2]
[403836974,1769583029818,207.8994773,0.00014977,2]
[403836975,1769583030140,547.19568063,0.00014977,2]
[403836976,1769583031002,472.98397701,0.00014977,2]
[403836977,1769583031622,500.0,0.00014977,2]
[403836978,1769583031667,155.37941822,0.00014977,2]
[403836979,1769583031709,547.19568063,0.00014977,2]
[403836982,1769583032022,-304.24350998,0.00014978,2]
[403836983,1769583032034,-1210.11489401,0.00014978,2]
[403836984,1769583032097,-274.2,0.00014978,2]
[403836985,1769583032108,-677.36324147,0.00014978,2]
[403836986,1769583032119,-1828.96,0.00014978,2]
[403836987,1769583032130,-4742.63241699,0.00014978,2]
[403836988,1769583032141,-468636.91696207,0.00014978,2]
[403836989,1769583032152,-65871.01737283,0.00014978,2]
[403836990,1769583032164,-42806.51651387,0.00014978,2]
[403836991,1769583032175,-153753.1344615,0.00014978,2]
[403836992,1769583032193,-289.88510599,0.00014978,2]
[403836993,1769583032204,-2542.81382997,0.00014978,2]
[403836994,1769583032215,-539.95972738,0.00014978,2]
[403836995,1769583032230,-854.31250193,0.00014978,2]
[403836996,1769583032241,-653.94812092,0.00014978,2]
[403836997,1769583032262,-23000.70684007,0.00014978,2]
[403836998,1769583033216,547.19568063,0.00014977,2]
[403836999,1769583035171,547.19568063,0.00014977,2]
[403837000,1769583035231,547.19568063,0.00014977,2]
[403837001,1769583035316,547.19568063,0.00014977,2]
[403837002,1769583035377,547.19568063,0.00014977,2]
[403837003,1769583035442,547.19568063,0.00014977,2]
[403837004,1769583035520,547.19568063,0.00014977,2]
[403837005,1769583035580,29.8118087,0.00014977,2]
[403837006,1769583035611,517.38387193,0.00014977,2]
[403837007,1769583035698,547.19568063,0.00014977,2]
[403837008,1769583035780,547.19568063,0.00014977,2]
[403837009,1769583035851,547.19568063,0.00014977,2]
[403837010,1769583035916,547.19568063,0.00014977,2]
[403837011,1769583035988,547.19568063,0.00014977,2]
[403837012,1769583036070,547.19568063,0.00014977,2]
[403837013,1769583036155,547.19568063,0.00014977,2]
[403837014,1769583036210,547.19568063,0.00014977,2]
[403837015,1769583036283,547.19568063,0.00014977,2]
[403837016,1769583036374,547.19568063,0.00014977,2]
[403837017,1769583036442,547.19568063,0.00014977,2]
[403837018,1769583036525,547.19568063,0.00014977,2]
[403837019,1769583036588,547.19568063,0.00014977,2]
[403837020,1769583036653,547.19568063,0.00014977,2]
[403837021,1769583036718,547.19568063,0.00014977,2]
[403837022,1769583036791,547.19568063,0.00014977,2]
[403837023,1769583036846,547.19568063,0.00014977,2]
[403837024,1769583036908,180.29955736,0.00014977,2]
[403837025,1769583036941,366.89612327,0.00014977,2]